bitfinex/quotes_BTCUSD_20241223
["timestamp","ask_amount","ask_price","bid_price","bid_amount"]
[1734929459669,0.0910767,95823.0,95822.0,8.56e-05]
[1734929460686,0.0910767,95823.0,95800.0,0.01371436]
[1734929460895,0.00130458,95822.0,95801.0,0.1013084]
[1734929461358,0.208724,95820.0,95805.0,0.208756]
[1734929461564,0.208729,95818.0,95802.0,0.208763]
[1734929461769,0.208729,95818.0,95802.0,0.3100714]
[1734929462172,0.208743,95812.0,95800.0,0.00016107]
[1734929463300,0.208735,95815.0,95800.0,0.00016107]
[1734929463503,0.208747,95810.0,95800.0,0.00016107]
[1734929463711,0.00130468,95809.0,95800.0,0.00016107]
[1734929463908,0.417497,95809.0,95800.0,0.00016107]
[1734929464135,0.208753,95807.0,95800.0,0.00016107]
[1734929464352,0.20876,95804.0,95800.0,0.00016107]
[1734929464965,0.00124235,95803.0,95800.0,0.00016107]
[1734929465164,0.00124235,95803.0,95800.0,0.00116107]
[1734929465507,0.00130475,95808.0,95800.0,0.00016107]
[1734929465636,0.00124017,95802.0,95800.0,0.00016107]
[1734929465844,0.208757,95805.0,95800.0,0.00316107]
[1734929466049,0.00124453,95804.0,95800.0,0.00016107]
[1734929466455,0.208761,95803.0,95800.0,0.00016107]
[1734929466679,0.208766,95801.0,95800.0,0.00016107]
[1734929467252,0.20998503,95801.0,95800.0,0.00016107]
[1734929467528,0.20998503,95801.0,95800.0,0.00316107]
[1734929467746,0.20998503,95801.0,95800.0,0.00016107]
[1734929468169,0.20998503,95801.0,95800.0,0.00416107]
[1734929468814,0.33429343,95801.0,95800.0,0.00416107]
[1734929469265,0.41599343,95801.0,95800.0,0.00416107]
[1734929469473,0.56808157,95801.0,95800.0,0.00416107]
[1734929470115,0.71808157,95801.0,95800.0,0.00416107]
[1734929470541,0.71808157,95801.0,95800.0,0.00424667]
[1734929470772,0.71808157,95801.0,95800.0,0.00024667]
[1734929470974,0.72308157,95801.0,95800.0,0.00024667]
[1734929471149,0.71808157,95801.0,95800.0,0.00024667]
[1734929471353,0.81128541,95801.0,95800.0,0.00024667]
[1734929471691,0.71828541,95801.0,95800.0,0.00124667]
[1734929471943,0.18821101,95801.0,95800.0,0.00124667]
[1734929472174,0.18951593,95801.0,95800.0,0.00124667]
[1734929472374,0.09000492,95801.0,95800.0,0.00124667]
[1734929473257,0.19131332,95801.0,95800.0,0.00124667]
[1734929473894,0.18431332,95801.0,95800.0,0.00024667]
[1734929474129,0.19031332,95801.0,95800.0,0.00124667]
[1734929474763,0.31331332,95801.0,95800.0,0.00124667]
[1734929474975,0.4620084,95801.0,95800.0,0.00124667]
[1734929476948,0.3620084,95801.0,95800.0,0.00124667]
[1734929477158,0.4620084,95801.0,95800.0,0.00124667]
[1734929478526,0.3620084,95801.0,95800.0,0.00124667]
[1734929480983,0.006,95801.0,95800.0,0.00124667]
[1734929483220,0.006,95801.0,95800.0,0.14935507]
[1734929483436,0.0001712,95805.0,95801.0,0.208766]
[1734929483677,0.0001712,95805.0,95800.0,0.04704667]
[1734929484066,0.0001712,95805.0,95801.0,0.208766]
[1734929484412,0.0001712,95805.0,95802.0,0.1013084]
[1734929485020,0.0001712,95805.0,95803.0,0.208761]
[1734929485232,0.0001712,95805.0,95804.0,0.1013084]
[1734929486043,0.0001712,95805.0,95800.0,0.00024667]
[1734929486276,0.208759,95804.0,95800.0,0.00024667]
[1734929486494,0.0001712,95805.0,95800.0,0.00024667]
[1734929486885,0.0001712,95805.0,95802.0,0.003]
[1734929487152,0.208759,95804.0,95800.0,0.00024667]
[1734929487407,0.00130475,95803.0,95800.0,0.00024667]
[1734929488259,0.208763,95802.0,95800.0,0.00024667]
[1734929489407,0.00130481,95801.0,95800.0,0.00024667]
[1734929489640,0.208763,95802.0,95800.0,0.00024667]
[1734929490262,0.00130481,95801.0,95800.0,0.00024667]
[1734929490720,0.208784,95793.0,95778.0,0.0072278]
[1734929490954,0.208784,95793.0,95784.0,0.02059769]
[1734929491414,0.00015677,95801.0,95771.0,0.2089156]
[1734929491655,0.208811,95781.0,95771.0,8.56e-05]
[1734929492587,0.208822,95776.0,95771.0,8.56e-05]
[1734929492794,0.208813,95780.0,95771.0,8.56e-05]
[1734929493214,0.417626,95780.0,95771.0,8.56e-05]
[1734929493426,0.208824,95775.0,95771.0,8.56e-05]
[1734929494016,0.208824,95775.0,95771.0,0.0020856]
[1734929494420,0.208824,95775.0,95771.0,8.56e-05]
[1734929494878,0.417648,95775.0,95771.0,0.0050856]
[1734929495368,0.208827,95773.0,95771.0,0.0050856]
[1734929495572,0.0013052,95772.0,95771.0,0.0050856]
[1734929496220,0.0013052,95772.0,95771.0,8.56e-05]
[1734929496658,0.0013052,95772.0,95771.0,0.0050856]
[1734929496905,0.0013052,95772.0,95771.0,8.56e-05]
[1734929497084,0.0023052,95772.0,95771.0,0.0060856]
[1734929499456,0.0013052,95772.0,95771.0,8.56e-05]
[1734929499660,0.0023052,95772.0,95771.0,8.56e-05]
[1734929500066,0.001,95772.0,95771.0,8.56e-05]
[1734929501092,0.208827,95773.0,95771.0,8.56e-05]
[1734929501313,0.208824,95775.0,95771.0,8.56e-05]
[1734929501716,0.00130522,95774.0,95771.0,8.56e-05]
[1734929502135,0.255177,95796.0,95772.0,0.208829]
[1734929502386,0.20879,95790.0,95772.0,0.208829]
[1734929502806,0.20879,95790.0,95777.0,0.208816]
[1734929502970,0.208779,95795.0,95777.0,0.417633]
[1734929503123,0.00130501,95794.0,95777.0,0.208816]
[1734929503329,0.208783,95793.0,95777.0,0.208816]
[1734929503552,0.00130501,95792.0,95777.0,0.208816]
[1734929503753,0.001,95790.0,95777.0,0.208816]
[1734929503961,0.00130501,95792.0,95777.0,0.208816]
[1734929504168,0.1246458,95790.0,95771.0,8.56e-05]
[1734929504366,0.208805,95784.0,95771.0,8.56e-05]
[1734929504603,0.208794,95788.0,95771.0,0.2089156]
[1734929504931,0.00130501,95787.0,95771.0,0.2089156]
[1734929505451,0.208798,95786.0,95771.0,0.2089156]
[1734929505891,0.208794,95788.0,95771.0,0.2089156]
[1734929506140,0.208794,95788.0,95777.0,0.001]
[1734929506322,0.00130501,95787.0,95771.0,0.2089156]
[1734929506511,0.208794,95788.0,95771.0,0.2089156]
[1734929506753,0.00130501,95787.0,95771.0,0.2119156]
[1734929507019,0.00130501,95787.0,95771.0,0.2089156]
[1734929507299,0.209794,95788.0,95777.0,8.57e-05]
[1734929507512,0.00130501,95787.0,95777.0,8.57e-05]
[1734929508601,0.208798,95786.0,95777.0,8.57e-05]
[1734929509560,0.209794,95788.0,95777.0,8.57e-05]
[1734929509907,0.208794,95788.0,95777.0,8.57e-05]
[1734929510942,0.00130501,95787.0,95777.0,8.57e-05]
[1734929511747,0.001,95788.0,95777.0,0.2089027]
[1734929512098,0.001,95788.0,95777.0,0.4177197]
[1734929512316,0.001,95788.0,95777.0,0.2089027]
[1734929512523,0.001,95788.0,95777.0,8.57e-05]
[1734929512726,0.208785,95792.0,95777.0,8.57e-05]
[1734929512927,0.001,95788.0,95777.0,8.57e-05]
[1734929513340,0.00130501,95789.0,95777.0,8.57e-05]
[1734929513567,0.00130501,95789.0,95777.0,0.0030857]
[1734929514176,0.20879,95790.0,95777.0,0.0030857]
[1734929514406,0.0001714,95793.0,95777.0,0.2089027]
[1734929515451,0.00147639,95793.0,95777.0,0.2089027]
[1734929515658,0.208785,95792.0,95777.0,0.2089027]
[1734929515857,0.00130499,95791.0,95777.0,0.2119027]
[1734929516056,0.208785,95792.0,95777.0,0.2119027]
[1734929516236,0.0001714,95793.0,95777.0,0.2119027]
[1734929516436,0.00147639,95793.0,95777.0,0.2089027]
[1734929516671,0.208785,95792.0,95777.0,0.2089027]
[1734929516833,0.00130499,95791.0,95777.0,0.2099027]
[1734929517556,0.00130499,95791.0,95777.0,0.2089027]
[1734929517962,0.00130499,95791.0,95777.0,0.2109027]
[1734929518164,0.00130499,95791.0,95777.0,0.2089027]
[1734929518542,0.00147639,95793.0,95777.0,0.2089027]
[1734929519378,0.208785,95792.0,95777.0,0.2089027]
[1734929519549,0.00130499,95791.0,95777.0,0.2109027]
[1734929519745,0.00147639,95791.0,95777.0,0.2109027]
[1734929519979,0.00147639,95791.0,95777.0,0.2089027]
[1734929520306,0.00147639,95791.0,95777.0,0.2099027]
[1734929520517,0.00147639,95791.0,95777.0,0.2089027]
[1734929520947,0.00147639,95791.0,95777.0,0.0020857]
[1734929521923,0.00147639,95791.0,95778.0,0.417631]
[1734929522132,0.0001714,95791.0,95778.0,0.1013084]
[1734929522352,0.0001714,95791.0,95783.0,0.208804]
[1734929522549,0.0001714,95791.0,95779.0,0.208814]
[1734929522758,0.0001714,95791.0,95781.0,0.075]
[1734929522970,0.0001714,95791.0,95783.0,0.208805]
[1734929523348,0.0001714,95791.0,95784.0,0.1013084]
[1734929523673,0.0001714,95791.0,95785.0,0.2088]
[1734929524485,0.0001714,95791.0,95785.0,0.4176]
[1734929524902,0.0001714,95791.0,95785.0,0.4387068]
[1734929525346,0.0001714,95791.0,95785.0,0.2299068]
[1734929525572,0.0001714,95791.0,95784.0,0.1013084]
[1734929525993,0.0001714,95791.0,95785.0,0.004]
[1734929526272,0.2080001,95797.0,95785.0,0.004]
[1734929527135,0.208767,95801.0,95785.0,0.004]
[1734929527355,0.208767,95801.0,95786.0,0.208798]
[1734929527537,0.0001712,95805.0,95791.0,0.0818]
[1734929527804,0.0001712,95805.0,95796.0,0.208776]
[1734929528026,0.0001712,95805.0,95804.0,0.208759]
[1734929528240,0.0001712,95805.0,95804.0,0.3100674]
[1734929530328,0.0011712,95805.0,95804.0,0.3190674]
[1734929530737,0.0001712,95805.0,95804.0,0.3100674]
[1734929530945,0.0011712,95805.0,95804.0,0.3190674]
[1734929531970,0.0011712,95805.0,95804.0,0.33573359]
[1734929540825,0.0011712,95805.0,95804.0,0.02566619]
[1734929541025,0.0011712,95805.0,95804.0,0.009]
[1734929541389,0.19555384,95805.0,95804.0,0.009]
[1734929541845,0.208759,95804.0,95779.0,0.208814]
[1734929542065,0.208783,95794.0,95779.0,0.208814]
[1734929542283,0.00130496,95793.0,95779.0,0.208814]
[1734929542511,0.208785,95792.0,95778.0,0.00016092]
[1734929542740,0.20879,95790.0,95778.0,0.00016092]
[1734929542966,0.208794,95788.0,95778.0,0.00016092]
[1734929543223,0.208802,95785.0,95778.0,0.00016092]
[1734929543926,0.208802,95785.0,95778.0,0.00316092]
[1734929544154,0.208803,95784.0,95778.0,0.00016092]
[1734929544576,0.208803,95784.0,95778.0,0.00116092]
[1734929544840,0.208803,95784.0,95778.0,0.00016092]
[1734929545344,0.075,95789.0,95778.0,0.00116092]
[1734929545595,0.291769,95800.0,95780.0,0.208811]
[1734929545819,0.208781,95794.0,95780.0,0.208811]
[1734929546270,0.208781,95794.0,95780.0,0.3334568]
[1734929546507,0.291769,95800.0,95780.0,0.3334568]
[1734929546734,0.291769,95800.0,95781.0,0.208809]
[1734929546967,0.20878,95795.0,95781.0,0.208809]
[1734929547440,0.291769,95800.0,95781.0,0.208809]
[1734929548158,0.001,95795.0,95781.0,0.208809]
[1734929548408,0.291769,95800.0,95781.0,0.208809]
[1734929548640,0.083,95800.0,95788.0,0.208794]
[1734929549820,0.00130492,95799.0,95788.0,0.208794]
[1734929551907,0.002,95799.0,95788.0,0.208794]
[1734929552563,0.002,95799.0,95781.0,0.02068716]
[1734929552803,0.002,95799.0,95792.0,0.208783]
[1734929553670,0.00130491,95798.0,95778.0,0.12236014]
[1734929553870,0.00130491,95797.0,95788.0,0.208792]
[1734929554090,0.00130491,95799.0,95788.0,0.208792]
[1734929554763,0.00130491,95799.0,95781.0,0.208809]
[1734929554985,0.208772,95798.0,95781.0,0.208809]
[1734929555211,0.00130491,95797.0,95788.0,8.56e-05]
[1734929555758,0.00130491,95799.0,95788.0,8.56e-05]
[1734929555980,0.208772,95798.0,95788.0,8.56e-05]
[1734929556200,0.001305,95797.0,95788.0,8.56e-05]
[1734929556663,0.001305,95799.0,95788.0,8.56e-05]
[1734929557123,0.003,95798.0,95788.0,8.56e-05]
[1734929557346,0.001305,95797.0,95788.0,8.56e-05]
[1734929557793,0.006,95797.0,95788.0,0.0010856]
[1734929558046,0.2919402,95800.0,95789.0,0.208792]
[1734929558047,0.00130499,95796.0,95789.0,0.208792]
[1734929558263,0.0831712,95800.0,95789.0,0.208792]
[1734929558483,0.002,95798.0,95789.0,0.208792]
[1734929558714,0.002,95798.0,95790.0,0.20879]
[1734929558943,0.002,95798.0,95796.0,0.208775]
[1734929559640,0.00130485,95799.0,95796.0,0.208775]
[1734929560103,0.002,95797.0,95796.0,0.208775]
[1734929560333,0.00130485,95799.0,95796.0,0.208775]
[1734929560563,0.00130485,95799.0,95796.0,0.210775]
[1734929560808,0.00130485,95799.0,95796.0,0.002]
[1734929561033,0.00130485,95799.0,95792.0,0.208785]
[1734929561268,0.00130485,95799.0,95796.0,0.003]
[1734929561498,0.00130485,95799.0,95797.0,0.208774]
[1734929561722,0.0831712,95800.0,95797.0,0.208774]
[1734929564192,0.0831712,95800.0,95797.0,0.211774]
[1734929565218,0.08307262,95800.0,95797.0,0.211774]
[1734929565628,0.08307262,95800.0,95797.0,0.003]
[1734929566620,0.08307262,95800.0,95797.0,0.211774]
[1734929568598,0.08297406,95800.0,95797.0,0.211774]
[1734929569831,0.08297406,95800.0,95797.0,0.208774]
[1734929570239,0.08297406,95800.0,95797.0,0.211774]
[1734929570657,0.08297406,95800.0,95797.0,0.138774]
[1734929570838,0.08297406,95800.0,95797.0,0.003]
[1734929571081,0.08297406,95800.0,95797.0,0.208774]
[1734929571253,0.08297406,95800.0,95797.0,0.211774]
[1734929571620,0.08297406,95800.0,95797.0,0.208774]
[1734929572256,0.0001712,95800.0,95797.0,0.208774]
[1734929573129,0.0001712,95800.0,95797.0,0.211774]
[1734929573348,0.0001712,95800.0,95797.0,0.208774]
[1734929573757,0.0001712,95800.0,95797.0,0.004]
[1734929574993,0.0001712,95800.0,95794.0,0.208779]
[1734929575549,0.0001712,95800.0,95784.0,0.02009969]
[1734929575751,0.0001712,95800.0,95789.0,0.1013084]
[1734929576148,0.0001712,95800.0,95795.0,0.208778]
[1734929576350,0.0001712,95800.0,95797.0,0.208774]
[1734929576532,0.0001712,95800.0,95799.0,0.20877]
[1734929576738,1.329e-05,95800.0,95799.0,0.3100784]
[1734929577606,1.329e-05,95800.0,95799.0,0.33054238]
[1734929578243,1.329e-05,95800.0,95799.0,0.33454238]
[1734929578488,1.329e-05,95800.0,95799.0,0.33054238]
[1734929578924,1.329e-05,95800.0,95799.0,0.33554238]
[1734929580449,1.329e-05,95800.0,95799.0,0.33054238]
[1734929580869,0.00101329,95800.0,95799.0,0.33054238]
[1734929585189,0.00101329,95800.0,95799.0,0.78054238]
[1734929585566,0.00101329,95800.0,95799.0,0.86254238]
[1734929586962,1.329e-05,95800.0,95799.0,0.86254238]
[1734929587462,0.00901329,95800.0,95799.0,0.86354238]
[1734929588516,0.00901329,95800.0,95799.0,1.00375373]
[1734929589240,0.0001712,95805.0,95804.0,0.35]
[1734929589241,4.9e-07,95805.0,95804.0,0.35]
[1734929589445,4.9e-07,95805.0,95804.0,0.5269084]
[1734929589581,4.9e-07,95805.0,95804.0,0.56313933]
[1734929589815,4.9e-07,95805.0,95804.0,0.61303933]
[1734929590465,4.9e-07,95805.0,95804.0,0.62203933]
[1734929590873,0.0001712,95823.0,95819.0,0.417452]
[1734929591071,0.0001712,95823.0,95820.0,0.1013084]
[1734929591298,0.0001712,95823.0,95821.0,0.208722]
[1734929591501,0.0001712,95823.0,95822.0,0.1013084]
[1734929592064,0.00029442,95823.0,95822.0,0.1013084]
[1734929593523,0.00029442,95823.0,95822.0,0.3513084]
[1734929594007,0.00029442,95823.0,95822.0,0.3523084]
[1734929594855,0.00029442,95823.0,95822.0,0.37304331]
[1734929595460,0.00029442,95823.0,95822.0,0.51964331]
[1734929595883,0.00029442,95823.0,95822.0,0.53859289]
[1734929596484,4.2e-07,95823.0,95822.0,0.53759289]
[1734929596691,4.2e-07,95823.0,95822.0,0.57382382]
[1734929596893,4.2e-07,95823.0,95822.0,0.57482382]
[1734929597729,0.0798,95854.0,95822.0,0.57482382]
[1734929597730,0.0798,95854.0,95832.0,0.558698]
[1734929597928,0.0798,95854.0,95832.0,1.1817564]
[1734929599010,0.00022484,95833.0,95832.0,1.1817564]
[1734929600629,0.00022484,95833.0,95832.0,1.1827564]
[1734929600830,0.00022484,95833.0,95832.0,1.2827564]
[1734929601277,0.00022484,95833.0,95832.0,1.3015994]
[1734929608457,0.00022484,95833.0,95832.0,1.37957033]
[1734929609936,0.00022484,95833.0,95832.0,1.37857033]
[1734929610140,4e-08,95834.0,95833.0,0.38623093]
[1734929610345,4e-08,95834.0,95833.0,1.00927933]
[1734929611211,0.07900004,95834.0,95833.0,0.7730484]
[1734929611655,0.07900004,95834.0,95833.0,0.6230484]
[1734929613590,0.07900004,95834.0,95833.0,0.6250484]
[1734929613807,0.07900004,95834.0,95833.0,0.6230484]
[1734929614230,0.07900004,95834.0,95833.0,0.6320484]
[1734929618652,0.07900004,95834.0,95833.0,0.632134]
[1734929621867,0.07900004,95834.0,95833.0,0.5308256]
[1734929621990,0.12420004,95834.0,95833.0,0.5308256]
[1734929622410,0.24981287,95834.0,95833.0,0.4027256]
[1734929622611,0.49850844,95834.0,95833.0,0.1465256]
[1734929622815,0.47745722,95834.0,95833.0,0.0184256]
[1734929623079,0.47745722,95834.0,95833.0,0.0094256]
[1734929623605,0.47745722,95834.0,95833.0,0.0144256]
[1734929623796,0.37745722,95834.0,95833.0,0.0144256]
[1734929623997,0.37745722,95834.0,95833.0,8.56e-05]
[1734929624433,0.37745722,95834.0,95833.0,0.0020856]
[1734929624627,0.37745722,95834.0,95833.0,8.56e-05]
[1734929625173,0.38145722,95834.0,95833.0,8.56e-05]
[1734929625629,0.38145722,95834.0,95807.0,0.1359232]
[1734929625844,0.12561304,95833.0,95807.0,5.364e-05]
[1734929626243,0.208717,95824.0,95807.0,0.20880564]
[1734929626480,0.00130464,95823.0,95807.0,0.20880564]
[1734929628039,0.00130464,95823.0,95807.0,0.20980564]
[1734929628244,0.20872,95822.0,95807.0,0.20980564]
[1734929628559,0.00130464,95821.0,95807.0,0.20980564]
[1734929628778,0.00130464,95823.0,95807.0,0.20980564]
[1734929628950,0.00130464,95823.0,95812.0,0.20874]
[1734929629558,0.00130464,95823.0,95807.0,0.20980564]
[1734929630200,0.01784641,95823.0,95807.0,0.20880564]
[1734929630415,0.01784641,95823.0,95807.0,0.20980564]
[1734929630654,0.00130464,95823.0,95817.0,0.20873]
[1734929630869,4e-08,95834.0,95814.0,0.208737]
[1734929631331,0.0001712,95823.0,95822.0,0.20872]
[1734929632574,0.0001712,95823.0,95822.0,0.3592284]
[1734929633978,0.0001712,95823.0,95822.0,0.3682284]
[1734929634221,0.0001712,95823.0,95822.0,0.3592284]
[1734929634635,0.0001712,95823.0,95822.0,0.3682284]
[1734929634875,0.0001712,95823.0,95822.0,0.37577863]
[1734929635071,0.0001712,95823.0,95822.0,0.38077863]
[1734929636418,0.0001712,95823.0,95822.0,0.37577863]
[1734929636617,0.0001712,95823.0,95822.0,0.38477863]
[1734929637032,0.0001712,95823.0,95822.0,0.37577863]
[1734929637440,0.0001712,95823.0,95822.0,0.37977863]
[1734929637651,0.0001712,95823.0,95822.0,0.37577863]
[1734929638077,0.0001712,95823.0,95822.0,0.38477863]
[1734929638292,0.0001712,95823.0,95822.0,0.37577863]
[1734929639693,0.0001712,95823.0,95822.0,0.37677863]
[1734929640074,0.0001712,95823.0,95822.0,0.22527023]
[1734929640276,0.0001712,95823.0,95822.0,0.23427023]
[1734929640705,0.0001712,95823.0,95822.0,0.22527023]
[1734929640878,0.0001712,95823.0,95822.0,0.23427023]
[1734929641284,0.0001712,95823.0,95822.0,0.22527023]
[1734929641493,0.0001712,95823.0,95822.0,0.23427023]
[1734929644989,0.0001712,95823.0,95822.0,0.22527023]
[1734929645407,0.0001712,95823.0,95816.0,0.02056831]
[1734929645648,0.0001712,95823.0,95813.0,0.3333838]
[1734929646326,0.0001712,95823.0,95822.0,0.009]
[1734929646538,0.0001712,95823.0,95813.0,0.34938749]
[1734929646784,0.0001712,95823.0,95814.0,0.02055725]
[1734929647036,0.0031712,95823.0,95820.0,0.208723]
[1734929647228,0.0001712,95823.0,95822.0,0.20872]
[1734929647644,0.0001712,95823.0,95822.0,0.21772]
[1734929647844,0.0001712,95823.0,95822.0,0.3100284]
[1734929649015,0.0001712,95823.0,95822.0,0.3581284]
[1734929649873,0.0001712,95823.0,95822.0,0.3671284]
[1734929655204,4e-08,95834.0,95833.0,0.208696]
[1734929655425,4e-08,95834.0,95833.0,0.3100044]
[1734929656383,4e-08,95834.0,95833.0,0.3150044]
[1734929657001,4e-08,95834.0,95833.0,0.3921044]
[1734929657198,4e-08,95834.0,95833.0,0.3871044]
[1734929657557,4e-08,95834.0,95833.0,0.3921044]
[1734929657820,4e-08,95834.0,95833.0,0.3871044]
[1734929659383,4e-08,95834.0,95833.0,0.3921044]
[1734929659588,4e-08,95834.0,95833.0,0.3871044]
[1734929659788,4e-08,95834.0,95833.0,0.40831138]
[1734929660021,4e-08,95834.0,95833.0,0.41731138]
[1734929660197,4e-08,95834.0,95833.0,0.40831138]
[1734929660611,4e-08,95834.0,95833.0,0.41731138]
[1734929660811,4e-08,95834.0,95833.0,0.40831138]
[1734929661227,4e-08,95834.0,95833.0,0.43263675]
[1734929662502,4e-08,95834.0,95833.0,0.42363675]
[1734929662719,4e-08,95834.0,95833.0,0.47263675]
[1734929662922,4e-08,95834.0,95833.0,0.48163675]
[1734929663138,4e-08,95834.0,95833.0,0.47263675]
[1734929663344,4e-08,95834.0,95833.0,0.48163675]
[1734929663800,4e-08,95834.0,95833.0,0.47263675]
[1734929663935,4e-08,95834.0,95833.0,0.48163675]
[1734929664296,4e-08,95834.0,95833.0,0.47263675]
[1734929664545,4e-08,95834.0,95833.0,0.72263675]
[1734929664764,4e-08,95834.0,95833.0,0.85886768]
[1734929664971,4e-08,95834.0,95833.0,0.82263675]
[1734929665781,4e-08,95834.0,95833.0,0.82363675]
[1734929665987,4e-08,95834.0,95833.0,0.82263675]
[1734929666426,0.00400004,95834.0,95833.0,0.82363675]
[1734929666634,4e-08,95834.0,95833.0,0.82263675]
[1734929666976,0.00400004,95834.0,95833.0,0.91720596]
[1734929667185,4e-08,95834.0,95833.0,0.91620596]
[1734929667602,0.00400004,95834.0,95833.0,0.91620596]
[1734929668853,4e-08,95834.0,95833.0,0.82263675]
[1734929669310,0.00400004,95834.0,95833.0,0.82263675]
[1734929669579,4e-08,95834.0,95833.0,0.82263675]
[1734929670007,0.00400004,95834.0,95833.0,0.82263675]
[1734929670143,0.0726,95885.0,95860.0,0.0773]
[1734929670352,0.00130371,95884.0,95870.0,0.1246458]
[1734929670578,0.00130371,95884.0,95871.0,0.208612]
[1734929670783,0.00130371,95884.0,95876.0,0.208601]
[1734929671244,0.00130371,95884.0,95869.0,0.208617]
[1734929671480,0.208587,95883.0,95869.0,0.208617]
[1734929671749,0.208594,95880.0,95862.0,0.208633]
[1734929671984,0.00130383,95882.0,95860.0,0.1246458]
[1734929671985,0.00130387,95879.0,95863.0,0.208629]
[1734929672209,0.00130389,95881.0,95863.0,0.208629]
[1734929672449,0.208598,95878.0,95863.0,0.208629]
[1734929672668,0.00130389,95877.0,95863.0,0.417259]
[1734929673164,0.00130389,95881.0,95863.0,0.417259]
[1734929673375,0.208589,95882.0,95868.0,0.208619]
[1734929673630,0.00509944,95880.0,95868.0,0.208619]
[1734929673855,0.00640329,95880.0,95868.0,0.208619]
[1734929674309,0.00640329,95880.0,95870.0,0.1246458]
[1734929674738,0.00130385,95879.0,95870.0,0.1246458]
[1734929674941,0.00130385,95879.0,95868.0,0.208619]
[1734929675138,0.00509944,95880.0,95875.0,0.208602]
[1734929675340,0.00509944,95880.0,95876.0,0.1013084]
[1734929675550,0.00053691,95884.0,95876.0,0.1013084]
[1734929675750,0.00053691,95884.0,95883.0,0.208587]
[1734929676882,0.00053691,95884.0,95881.0,0.208591]
[1734929677082,0.00053691,95884.0,95883.0,0.005]
[1734929677475,0.00053691,95884.0,95881.0,0.208591]
[1734929678222,0.00053691,95884.0,95881.0,0.3098994]
[1734929678881,0.00053691,95884.0,95883.0,0.002]
[1734929679027,0.00053691,95884.0,95881.0,0.3098994]
[1734929679457,0.00053691,95884.0,95881.0,0.3939994]
[1734929679655,0.00053691,95884.0,95881.0,0.3889994]
[1734929680123,0.00053691,95884.0,95883.0,0.005]
[1734929680326,0.00053691,95884.0,95881.0,0.3889994]
[1734929680745,0.00053691,95884.0,95881.0,0.1884084]
[1734929681585,0.00053691,95884.0,95881.0,0.3969994]
[1734929682017,0.00053691,95884.0,95881.0,0.3889994]
[1734929682157,0.00053691,95884.0,95883.0,0.009]
[1734929682568,0.00053691,95884.0,95881.0,0.3889994]
[1734929682769,0.00053691,95884.0,95881.0,0.3979994]
[1734929683169,0.00053691,95884.0,95881.0,0.3889994]
[1734929683631,0.00053691,95884.0,95883.0,0.009]
[1734929683816,0.00053691,95884.0,95881.0,0.3889994]
[1734929685768,0.00053691,95884.0,95881.0,0.3979994]
[1734929687467,0.00053691,95884.0,95881.0,0.3889994]
[1734929688858,0.00053691,95884.0,95881.0,0.3979994]
[1734929689059,0.00053691,95884.0,95881.0,0.3889994]
[1734929689459,0.00053691,95884.0,95881.0,0.3979994]
[1734929689678,0.00053691,95884.0,95881.0,0.3889994]
[1734929690092,0.00499544,95900.0,95882.0,0.00104284]
[1734929690327,0.00016094,95889.0,95884.0,0.208584]
[1734929691635,0.00016094,95889.0,95884.0,0.417168]
[1734929693686,0.208588,95883.0,95881.0,8.55e-05]
[1734929693889,0.00129348,95882.0,95881.0,8.55e-05]
[1734929694007,0.00644813,95882.0,95881.0,8.55e-05]
[1734929694213,0.12946305,95882.0,95881.0,8.55e-05]
[1734929694418,0.35335653,95882.0,95881.0,8.55e-05]
[1734929694621,0.35206305,95882.0,95881.0,8.55e-05]
[1734929695657,0.173,95881.0,95848.0,0.208662]
[1734929695876,0.208631,95863.0,95848.0,0.22307745]
[1734929696058,0.00129348,95862.0,95848.0,0.22307745]
[1734929696352,0.0050067,95862.0,95848.0,0.22307745]
[1734929696933,0.0050067,95862.0,95850.0,0.1246458]
[1734929697519,0.00136961,95861.0,95850.0,0.1246458]
[1734929697722,0.00129348,95860.0,95848.0,0.22407745]
[1734929697894,0.00129348,95860.0,95850.0,0.1246458]
[1734929698307,0.00129348,95860.0,95851.0,0.208657]
[1734929698508,0.00129348,95866.0,95851.0,0.208657]
[1734929698712,0.00129348,95865.0,95851.0,0.208657]
[1734929699039,0.00145436,95865.0,95851.0,0.208657]
[1734929699580,0.00145436,95865.0,95857.0,0.208642]
[1734929699849,0.00016088,95865.0,95864.0,0.208628]
[1734929700069,0.00016088,95865.0,95864.0,0.3099364]
[1734929701284,0.00016088,95865.0,95864.0,0.3169364]
[1734929702303,0.00016088,95865.0,95864.0,0.33120319]
[1734929702617,0.00016088,95865.0,95864.0,0.32420319]
[1734929703018,0.00016088,95865.0,95864.0,0.33320319]
[1734929703221,0.00016088,95865.0,95864.0,0.34472835]
[1734929703656,0.00016088,95865.0,95864.0,0.35372835]
[1734929706370,0.00016088,95865.0,95864.0,0.43022835]
[1734929706573,0.00942212,95887.0,95879.0,0.208595]
[1734929706796,0.00129348,95886.0,95879.0,0.208595]
[1734929707001,0.023,95906.0,95876.0,0.1246458]
[1734929707251,0.00129348,95905.0,95877.0,0.0765]
[1734929707414,0.00509768,95900.0,95889.0,0.208572]
[1734929708272,0.00509768,95900.0,95895.0,0.20856]
[1734929708613,0.0001712,95901.0,95897.0,0.208555]
[1734929708843,0.0001712,95901.0,95897.0,0.417112]
[1734929709441,0.00033205,95901.0,95897.0,0.417112]
[1734929710426,0.00033205,95901.0,95897.0,0.422112]
[1734929710644,0.2086812,95919.0,95894.0,0.0473]
[1734929710645,0.0001712,95919.0,95911.0,0.208525]
[1734929710827,0.0001712,95919.0,95918.0,0.208511]
[1734929711069,0.0001712,95919.0,95918.0,0.3098194]
[1734929711444,0.0001712,95919.0,95918.0,0.3916194]
[1734929713253,0.0001712,95919.0,95918.0,0.3946194]
[1734929713611,0.0001712,95919.0,95918.0,0.3916194]
[1734929713815,0.0001712,95919.0,95918.0,0.3956194]
[1734929715366,0.0001712,95919.0,95918.0,0.41657562]
[1734929718702,0.0001712,95919.0,95918.0,0.41257562]
[1734929719811,0.0001712,95919.0,95918.0,0.41557562]
[1734929721168,0.0001712,95919.0,95918.0,0.41257562]
[1734929722616,0.0001712,95919.0,95918.0,0.41457562]
[1734929723466,0.0001712,95919.0,95918.0,0.41257562]
[1734929723656,0.0001712,95919.0,95918.0,0.41757562]
[1734929724062,0.0001712,95919.0,95918.0,0.41257562]
[1734929724222,0.0001712,95919.0,95918.0,0.41757562]
[1734929724423,0.0001712,95919.0,95918.0,0.56757562]
[1734929724621,0.0001712,95919.0,95918.0,0.63431985]
[1734929725218,0.0001712,95919.0,95918.0,0.59808892]
[1734929725638,0.0001712,95919.0,95918.0,0.56257562]
[1734929726680,0.01403112,95945.0,95918.0,0.56257562]